{"text_format":"1","workbook":"xlsx","n_sheets":2,"sheets":["매입원장","Option"],"not_rendered":{"charts":0,"images":0,"macros":1,"external_links":0,"defined_names":1,"comments":0,"pivot_tables":0},"unopened":[],"bounds":{"document_bytes":16777216,"sheet_cells":100000,"rows_first":2000,"rows_last":500,"rows_between":2000,"halvings":0,"cell_chars":16384,"cell_head_chars":4096},"cells_cut":0,"cells_raw":0,"read":"whole","date_system":"1900"}

{"sheet":"매입원장","index":0,"n_rows":22,"n_cols":45,"rows_kept":22,"cut":false,"hidden":false,"merged":[[20,30,20,33],[20,34,20,38],[20,39,20,43],[20,44,20,48],[21,1,21,5],[21,6,21,13],[21,14,21,20],[21,21,21,25],[21,26,21,29],[21,30,21,33],[21,34,21,38],[21,39,21,43],[21,44,21,48],[20,1,20,5],[20,6,20,13],[20,14,20,20],[20,21,20,25],[20,26,20,29],[18,30,18,33],[18,34,18,38],[18,39,18,43],[18,44,18,48],[19,1,19,5],[19,6,19,13],[19,14,19,20],[19,21,19,25],[19,26,19,29],[19,30,19,33],[19,34,19,38],[19,39,19,43],[19,44,19,48],[18,1,18,5],[18,6,18,13],[18,14,18,20],[18,21,18,25],[18,26,18,29],[16,30,16,33],[16,34,16,38],[16,39,16,43],[16,44,16,48],[17,1,17,5],[17,6,17,13],[17,14,17,20],[17,21,17,25],[17,26,17,29],[17,30,17,33],[17,34,17,38],[17,39,17,43],[17,44,17,48],[16,1,16,5],[16,6,16,13],[16,14,16,20],[16,21,16,25],[16,26,16,29],[14,30,14,33],[14,34,14,38],[14,39,14,43],[14,44,14,48],[15,1,15,5],[15,6,15,13],[15,14,15,20],[15,21,15,25],[15,26,15,29],[15,30,15,33],[15,34,15,38],[15,39,15,43],[15,44,15,48],[14,1,14,5],[14,6,14,13],[14,14,14,20],[14,21,14,25],[14,26,14,29],[12,30,12,33],[12,34,12,38],[12,39,12,43],[12,44,12,48],[13,1,13,5],[13,6,13,13],[13,14,13,20],[13,21,13,25],[13,26,13,29],[13,30,13,33],[13,34,13,38],[13,39,13,43],[13,44,13,48],[12,1,12,5],[12,6,12,13],[12,14,12,20],[12,21,12,25],[12,26,12,29],[10,30,10,33],[10,34,10,38],[10,39,10,43],[10,44,10,48],[11,1,11,5],[11,6,11,13],[11,14,11,20],[11,21,11,25],[11,26,11,29],[11,30,11,33],[11,34,11,38],[11,39,11,43],[11,44,11,48],[10,1,10,5],[10,6,10,13],[10,14,10,20],[10,21,10,25],[10,26,10,29],[8,30,8,33],[8,34,8,38],[8,39,8,43],[8,44,8,48],[9,1,9,5],[9,6,9,13],[9,14,9,20],[9,21,9,25],[9,26,9,29],[9,30,9,33],[9,34,9,38],[9,39,9,43],[9,44,9,48],[8,1,8,5],[8,6,8,13],[8,14,8,20],[8,21,8,25],[8,26,8,29],[2,1,3,48],[5,44,5,48],[6,1,7,5],[6,6,7,13],[6,14,7,20],[6,21,7,25],[6,26,6,38],[6,39,7,43],[6,44,7,48],[7,26,7,29],[7,30,7,33],[7,34,7,38],[5,1,5,5],[5,6,5,20],[5,21,5,25],[5,26,5,38],[5,39,5,43]]}
[]
[]
[null,"매입원장"]
[]
[]
[null,"기간",null,null,null,null,"20  년   월   일 ~ 20  년   월   일",null,null,null,null,null,null,null,null,null,null,null,null,null,null,"부서명",null,null,null,null,null,null,null,null,null,null,null,null,null,null,null,null,null,"작 성 자"]
[null,"일자",null,null,null,null,"매입처명",null,null,null,null,null,null,null,"품명",null,null,null,null,null,null,"규격",null,null,null,null,"매입내역",null,null,null,null,null,null,null,null,null,null,null,null,"결제금액",null,null,null,null,"미지급액"]
[null,null,null,null,null,null,null,null,null,null,null,null,null,null,null,null,null,null,null,null,null,null,null,null,null,null,"수량",null,null,null,"단가",null,null,null,"매입금액"]
[null,null,null,null,null,null,null,null,null,null,null,null,null,null,null,null,null,null,null,null,null,null,null,null,null,null,null,null,null,null,null,null,null,null,{"$f":"AA9*AE9","v":0},null,null,null,null,null,null,null,null,null,{"$f":"AI9-AN9","v":0}]
[null,null,null,null,null,null,null,null,null,null,null,null,null,null,null,null,null,null,null,null,null,null,null,null,null,null,null,null,null,null,null,null,null,null,0,null,null,null,null,null,null,null,null,null,{"$f":"AI10-AN10","v":0}]
[null,null,null,null,null,null,null,null,null,null,null,null,null,null,null,null,null,null,null,null,null,null,null,null,null,null,null,null,null,null,null,null,null,null,0,null,null,null,null,null,null,null,null,null,0]
[null,null,null,null,null,null,null,null,null,null,null,null,null,null,null,null,null,null,null,null,null,null,null,null,null,null,null,null,null,null,null,null,null,null,0,null,null,null,null,null,null,null,null,null,0]
[null,null,null,null,null,null,null,null,null,null,null,null,null,null,null,null,null,null,null,null,null,null,null,null,null,null,null,null,null,null,null,null,null,null,0,null,null,null,null,null,null,null,null,null,0]
[null,null,null,null,null,null,null,null,null,null,null,null,null,null,null,null,null,null,null,null,null,null,null,null,null,null,null,null,null,null,null,null,null,null,0,null,null,null,null,null,null,null,null,null,0]
[null,null,null,null,null,null,null,null,null,null,null,null,null,null,null,null,null,null,null,null,null,null,null,null,null,null,null,null,null,null,null,null,null,null,0,null,null,null,null,null,null,null,null,null,0]
[null,null,null,null,null,null,null,null,null,null,null,null,null,null,null,null,null,null,null,null,null,null,null,null,null,null,null,null,null,null,null,null,null,null,0,null,null,null,null,null,null,null,null,null,0]
[null,null,null,null,null,null,null,null,null,null,null,null,null,null,null,null,null,null,null,null,null,null,null,null,null,null,null,null,null,null,null,null,null,null,0,null,null,null,null,null,null,null,null,null,0]
[null,null,null,null,null,null,null,null,null,null,null,null,null,null,null,null,null,null,null,null,null,null,null,null,null,null,null,null,null,null,null,null,null,null,0,null,null,null,null,null,null,null,null,null,0]
[null,null,null,null,null,null,null,null,null,null,null,null,null,null,null,null,null,null,null,null,null,null,null,null,null,null,null,null,null,null,null,null,null,null,0,null,null,null,null,null,null,null,null,null,0]
[null,null,null,null,null,null,null,null,null,null,null,null,null,null,null,null,null,null,null,null,null,null,null,null,null,null,null,null,null,null,null,null,null,null,0,null,null,null,null,null,null,null,null,null,0]
[null,null,null,null,null,null,null,null,null,null,null,null,null,null,null,null,null,null,null,null,null,null,null,null,null,null,null,null,null,null,null,null,null,null,0,null,null,null,null,null,null,null,null,null,0]
[null,"합계",null,null,null,null,null,null,null,null,null,null,null,null,null,null,null,null,null,null,null,null,null,null,null,null,{"$f":"SUM(AA9:AD21)","v":0},null,null,null,null,null,null,null,{"$f":"SUM(AI9:AM21)","v":0},null,null,null,null,{"$f":"SUM(AN9:AR21)","v":0},null,null,null,null,{"$f":"SUM(AS9:AW21)","v":0}]

{"sheet":"Option","index":1,"n_rows":7,"n_cols":8,"rows_kept":7,"cut":false,"hidden":true,"merged":[]}
["지출결의서",null,"행/열",0,"흑백인쇄",0,null,"결재란"]
["월 지출내역서",null,"색상",1,null,null,null,"없음"]
["월 지출품의서",null,null,null,null,null,null,"1개"]
[null,null,null,null,null,null,null,"2개"]
[null,null,null,null,null,null,null,"3개"]
[null,null,null,null,null,null,null,"4개"]
[null,null,null,null,null,null,null,"5개"]